[Event "January 2 Late 2024"]
[Site "https://www.chess.com"]
[Date "2024.01.02"]
[Round "4"]
[White "Carrillo Marval, Maria Angelica"]
[Black "Andersson, Bjorn 1971"]
[Result "1-0"]
[Board "227"]
[TimeControl "180+1"]
[WhiteFideId "3911853"]
[BlackFideId "1702114"]
[WhiteElo "1947"]
[BlackElo "2239"]
[WhiteTeam "PAN"]
[BlackTeam "SWE"]
[WhiteClock "0:00:04"]
[BlackClock "0:00:18"]

1. e4 {[%clk 0:03:00]}  b5 {[%clk 0:02:59]} 2. Bxb5 {[%clk 0:02:56]}  Bb7 {[%clk 0:02:57]} 3. d3 {[%clk 0:02:54]}  f5 {[%clk 0:02:56]} 4. Qe2 {[%clk 0:02:50]}  fxe4 {[%clk 0:02:54]} 5. dxe4 {[%clk 0:02:38]}  Nf6 {[%clk 0:02:54]} 6. Bd3 {[%clk 0:02:34]}  e5 {[%clk 0:02:53]} 7. Nc3 {[%clk 0:02:33]}  Nc6 {[%clk 0:02:53]} 8. Bg5 {[%clk 0:02:32]}  Nd4 {[%clk 0:02:51]} 9. Qd1 {[%clk 0:02:18]}  Bb4 {[%clk 0:02:30]} 10. a3 {[%clk 0:02:08]}  Ba5 {[%clk 0:02:26]} 11. b4 {[%clk 0:02:08]}  Bb6 {[%clk 0:02:26]} 12. Nf3 {[%clk 0:02:01]}  Nxf3+ {[%clk 0:02:21]} 13. Qxf3 {[%clk 0:01:54]}  O-O {[%clk 0:02:21]} 14. O-O {[%clk 0:01:41]}  Qe8 {[%clk 0:02:16]} 15. Qh3 {[%clk 0:01:27]}  Bd4 {[%clk 0:02:10]} 16. Bc4+ {[%clk 0:01:24]}  Kh8 {[%clk 0:02:08]} 17. Bxf6 {[%clk 0:01:21]}  Rxf6 {[%clk 0:02:00]} 18. Rad1 {[%clk 0:01:18]}  Rh6 {[%clk 0:01:51]} 19. Qf3 {[%clk 0:01:09]}  Rf6 {[%clk 0:01:46]} 20. Qd3 {[%clk 0:01:07]}  Qh5 {[%clk 0:01:33]} 21. Ne2 {[%clk 0:00:57]}  Rh6 {[%clk 0:01:27]} 22. h3 {[%clk 0:00:54]}  Bb6 {[%clk 0:01:12]} 23. Ng3 {[%clk 0:00:33]}  Qg5 {[%clk 0:00:59]} 24. Qxd7 {[%clk 0:00:19]}  Rg6 {[%clk 0:00:43]} 25. Kh2 {[%clk 0:00:14]}  h5 {[%clk 0:00:42]} 26. Rg1 {[%clk 0:00:04]}  Bxf2 {[%clk 0:00:37]} 27. Nf5 {[%clk 0:00:04]}  Bxe4 {[%clk 0:00:29]} 28. Qxc7 {[%clk 0:00:04]}  Bxf5 {[%clk 0:00:26]} 29. Bf7 {[%clk 0:00:04]}  Bxh3 {[%clk 0:00:22]} 30. Bxg6 {[%clk 0:00:02]}  Qg3+ {[%clk 0:00:22]} 31. Kh1 {[%clk 0:00:03]}  Bg4 {[%clk 0:00:21]} 32. Rd8+ {[%clk 0:00:03]}  Rxd8 {[%clk 0:00:18]} 33. Qxd8# {[%clk 0:00:04]} 1-0

[Event "January 2 Late 2024"]
[Site "https://www.chess.com"]
[Date "2024.01.02"]
[Round "5"]
[White "Le, Tuan Minh"]
[Black "Nihal Sarin"]
[Result "1/2-1/2"]
[Board "2"]
[TimeControl "180+1"]
[WhiteFideId "12401153"]
[BlackFideId "25092340"]
[WhiteElo "3006"]
[BlackElo "3214"]
[WhiteTeam "VIE"]
[BlackTeam "IND"]
[WhiteClock "0:00:09"]
[BlackClock "0:00:05"]

1. d4 {[%clk 0:02:46]}  Nf6 {[%clk 0:02:59]} 2. c4 {[%clk 0:02:46]}  g6 {[%clk 0:02:59]} 3. Nf3 {[%clk 0:02:45]}  Bg7 {[%clk 0:02:59]} 4. g3 {[%clk 0:02:46]}  c5 {[%clk 0:02:55]} 5. Bg2 {[%clk 0:02:45]}  cxd4 {[%clk 0:02:55]} 6. Nxd4 {[%clk 0:02:46]}  h5 {[%clk 0:02:55]} 7. h3 {[%clk 0:02:43]}  Nc6 {[%clk 0:02:54]} 8. Nc3 {[%clk 0:02:40]}  O-O {[%clk 0:02:54]} 9. O-O {[%clk 0:02:40]}  d6 {[%clk 0:02:54]} 10. Nc2 {[%clk 0:02:35]}  Be6 {[%clk 0:02:50]} 11. b3 {[%clk 0:02:21]}  h4 {[%clk 0:02:36]} 12. gxh4 {[%clk 0:02:19]}  Qa5 {[%clk 0:02:28]} 13. Qd3 {[%clk 0:02:03]}  Qh5 {[%clk 0:02:12]} 14. Qg3 {[%clk 0:01:54]}  d5 {[%clk 0:02:07]} 15. Bf3 {[%clk 0:01:48]}  Qh8 {[%clk 0:01:52]} 16. cxd5 {[%clk 0:01:28]}  Nxd5 {[%clk 0:01:52]} 17. Nxd5 {[%clk 0:01:28]}  Bxa1 {[%clk 0:01:48]} 18. Nxa1 {[%clk 0:01:29]}  Bxd5 {[%clk 0:01:14]} 19. Bxd5 {[%clk 0:01:28]}  Qxa1 {[%clk 0:01:14]} 20. Bh6 {[%clk 0:01:19]}  Qf6 {[%clk 0:01:15]} 21. Bxf8 {[%clk 0:01:06]}  Kxf8 {[%clk 0:01:16]} 22. Bxc6 {[%clk 0:00:51]}  Qxc6 {[%clk 0:00:55]} 23. Rd1 {[%clk 0:00:48]}  Rc8 {[%clk 0:00:56]} 24. Qg4 {[%clk 0:00:39]}  e6 {[%clk 0:00:38]} 25. h5 {[%clk 0:00:38]}  gxh5 {[%clk 0:00:38]} 26. Qxh5 {[%clk 0:00:37]}  Qc5 {[%clk 0:00:30]} 27. Rd8+ {[%clk 0:00:34]}  Ke7 {[%clk 0:00:31]} 28. Qh4+ {[%clk 0:00:35]}  f6 {[%clk 0:00:31]} 29. Rxc8 {[%clk 0:00:30]}  Qxc8 {[%clk 0:00:32]} 30. Qh7+ {[%clk 0:00:31]}  Kd6 {[%clk 0:00:32]} 31. Qg7 {[%clk 0:00:30]}  Qc1+ {[%clk 0:00:27]} 32. Kg2 {[%clk 0:00:31]}  Qb2 {[%clk 0:00:27]} 33. e3 {[%clk 0:00:23]}  Qxa2 {[%clk 0:00:25]} 34. Qxb7 {[%clk 0:00:23]}  a5 {[%clk 0:00:17]} 35. h4 {[%clk 0:00:22]}  Qb1 {[%clk 0:00:17]} 36. Qb6+ {[%clk 0:00:22]}  Ke7 {[%clk 0:00:17]} 37. Qc7+ {[%clk 0:00:21]}  Kf8 {[%clk 0:00:17]} 38. Qc4 {[%clk 0:00:21]}  Kf7 {[%clk 0:00:15]} 39. h5 {[%clk 0:00:19]}  Qf5 {[%clk 0:00:15]} 40. Qh4 {[%clk 0:00:18]}  Kg7 {[%clk 0:00:15]} 41. e4 {[%clk 0:00:15]}  Qe5 {[%clk 0:00:05]} 42. Qg4+ {[%clk 0:00:15]}  Kh8 {[%clk 0:00:05]} 43. h6 {[%clk 0:00:13]}  f5 {[%clk 0:00:05]} 44. exf5 {[%clk 0:00:13]}  exf5 {[%clk 0:00:06]} 45. Qg5 {[%clk 0:00:14]}  Qe4+ {[%clk 0:00:04]} 46. Kh2 {[%clk 0:00:14]}  Qe5+ {[%clk 0:00:04]} 47. Kh3 {[%clk 0:00:12]}  Qc3+ {[%clk 0:00:04]} 48. Qg3 {[%clk 0:00:13]}  Qf6 {[%clk 0:00:04]} 49. Qg7+ {[%clk 0:00:08]}  Qxg7 {[%clk 0:00:04]} 50. hxg7+ {[%clk 0:00:09]}  Kxg7 {[%clk 0:00:04]} 51. Kg3 {[%clk 0:00:09]}  Kg6 {[%clk 0:00:03]} 52. Kf4 {[%clk 0:00:09]}  Kf6 {[%clk 0:00:03]} 53. f3 {[%clk 0:00:06]}  Ke6 {[%clk 0:00:04]} 54. Kg5 {[%clk 0:00:06]}  Ke5 {[%clk 0:00:04]} 55. Kg6 {[%clk 0:00:06]}  Kd4 {[%clk 0:00:03]} 56. Kxf5 {[%clk 0:00:06]}  Kc3 {[%clk 0:00:04]} 57. Kg4 {[%clk 0:00:06]}  Kxb3 {[%clk 0:00:05]} 58. f4 {[%clk 0:00:07]}  a4 {[%clk 0:00:05]} 59. f5 {[%clk 0:00:08]}  a3 {[%clk 0:00:06]} 60. f6 {[%clk 0:00:08]}  a2 {[%clk 0:00:07]} 61. f7 {[%clk 0:00:09]}  a1=Q {[%clk 0:00:07]} 62. f8=Q {[%clk 0:00:10]}  Qg1+ {[%clk 0:00:08]} 63. Kh5 {[%clk 0:00:08]}  Qh1+ {[%clk 0:00:06]} 64. Kg6 {[%clk 0:00:08]}  Qc6+ {[%clk 0:00:06]} 65. Kg7 {[%clk 0:00:08]}  Qc4 {[%clk 0:00:05]} 66. Qf7 {[%clk 0:00:09]}  Qxf7+ {[%clk 0:00:05]} 67. Kxf7 {[%clk 0:00:09]} 1/2-1/2

[Event "January 2 Late 2024"]
[Site "https://www.chess.com"]
[Date "2024.01.02"]
[Round "5"]
[White "Caruana, Fabiano"]
[Black "Livaic, Leon"]
[Result "1-0"]
[Board "6"]
[TimeControl "180+1"]
[WhiteFideId "2020009"]
[BlackFideId "14531534"]
[WhiteElo "3038"]
[BlackElo "2911"]
[WhiteTeam "USA"]
[BlackTeam "CRO"]
[WhiteClock "0:00:18"]
[BlackClock "0:00:01"]

1. e4 {[%clk 0:03:00]}  e6 {[%clk 0:02:59]} 2. d4 {[%clk 0:03:00]}  d5 {[%clk 0:03:00]} 3. Nc3 {[%clk 0:03:01]}  Bb4 {[%clk 0:03:00]} 4. e5 {[%clk 0:03:01]}  c5 {[%clk 0:03:01]} 5. a3 {[%clk 0:03:01]}  Bxc3+ {[%clk 0:03:02]} 6. bxc3 {[%clk 0:03:02]}  Nc6 {[%clk 0:03:02]} 7. Qg4 {[%clk 0:03:01]}  g6 {[%clk 0:03:02]} 8. h4 {[%clk 0:03:00]}  h6 {[%clk 0:03:02]} 9. Nf3 {[%clk 0:03:00]}  Bd7 {[%clk 0:03:01]} 10. Bd3 {[%clk 0:02:52]}  Qa5 {[%clk 0:02:57]} 11. Bd2 {[%clk 0:02:50]}  c4 {[%clk 0:02:48]} 12. Be2 {[%clk 0:02:49]}  O-O-O {[%clk 0:02:42]} 13. a4 {[%clk 0:02:47]}  Rf8 {[%clk 0:02:29]} 14. O-O {[%clk 0:02:46]}  f6 {[%clk 0:02:22]} 15. Qxg6 {[%clk 0:02:41]}  Nge7 {[%clk 0:02:21]} 16. Qg3 {[%clk 0:02:32]}  Nf5 {[%clk 0:02:09]} 17. Qh2 {[%clk 0:02:32]}  fxe5 {[%clk 0:02:05]} 18. Nxe5 {[%clk 0:02:31]}  Ncxd4 {[%clk 0:01:55]} 19. Bd1 {[%clk 0:02:21]}  Rhg8 {[%clk 0:01:48]} 20. h5 {[%clk 0:02:17]}  Be8 {[%clk 0:01:24]} 21. Re1 {[%clk 0:01:52]}  Rg7 {[%clk 0:01:22]} 22. Kh1 {[%clk 0:01:40]}  Rfg8 {[%clk 0:01:21]} 23. g4 {[%clk 0:01:37]}  Nd6 {[%clk 0:01:10]} 24. Qf4 {[%clk 0:00:20]}  Nc6 {[%clk 0:00:44]} 25. Nxc6 {[%clk 0:00:20]}  Bxc6 {[%clk 0:00:45]} 26. Qxd6 {[%clk 0:00:20]}  d4+ {[%clk 0:00:46]} 27. Kh2 {[%clk 0:00:18]}  Rxg4 {[%clk 0:00:21]} 28. Bxg4 {[%clk 0:00:19]}  Rxg4 {[%clk 0:00:21]} 29. Re5 {[%clk 0:00:20]}  Qa6 {[%clk 0:00:01]} 30. Qxe6+ {[%clk 0:00:18]} 1-0

[Event "January 2 Late 2024"]
[Site "https://www.chess.com"]
[Date "2024.01.02"]
[Round "5"]
[White "Hakobyan, Aram"]
[Black "Sanal, Vahap"]
[Result "0-1"]
[Board "7"]
[TimeControl "180+1"]
[WhiteFideId "13306677"]
[BlackFideId "6300545"]
[WhiteElo "3030"]
[BlackElo "2883"]
[WhiteTeam "ARM"]
[BlackTeam "TUR"]
[WhiteClock "0:00:00"]
[BlackClock "0:00:19"]

1. e4 {[%clk 0:03:00]}  d6 {[%clk 0:03:00]} 2. Nc3 {[%clk 0:03:00]}  Nf6 {[%clk 0:03:00]} 3. f4 {[%clk 0:02:57]}  e5 {[%clk 0:02:59]} 4. Nf3 {[%clk 0:02:57]}  Nc6 {[%clk 0:02:53]} 5. Bb5 {[%clk 0:02:52]}  Bd7 {[%clk 0:02:48]} 6. d3 {[%clk 0:02:52]}  Be7 {[%clk 0:02:47]} 7. Bxc6 {[%clk 0:02:52]}  Bxc6 {[%clk 0:02:44]} 8. fxe5 {[%clk 0:02:53]}  Ng4 {[%clk 0:02:34]} 9. exd6 {[%clk 0:02:52]}  Qxd6 {[%clk 0:02:30]} 10. O-O {[%clk 0:02:39]}  O-O-O {[%clk 0:02:24]} 11. Qe2 {[%clk 0:02:34]}  h5 {[%clk 0:02:20]} 12. Bd2 {[%clk 0:02:09]}  Rde8 {[%clk 0:02:11]} 13. Be1 {[%clk 0:01:52]}  f5 {[%clk 0:02:08]} 14. Rd1 {[%clk 0:01:36]}  Bf6 {[%clk 0:02:08]} 15. Bg3 {[%clk 0:01:23]}  Qb4 {[%clk 0:01:58]} 16. Rb1 {[%clk 0:00:21]}  h4 {[%clk 0:01:47]} 17. Be1 {[%clk 0:00:21]}  h3 {[%clk 0:01:38]} 18. g3 {[%clk 0:00:22]}  fxe4 {[%clk 0:01:20]} 19. Nxe4 {[%clk 0:00:22]}  Qb5 {[%clk 0:01:20]} 20. c4 {[%clk 0:00:20]}  Qf5 {[%clk 0:01:15]} 21. Bc3 {[%clk 0:00:14]}  Bxe4 {[%clk 0:01:15]} 22. dxe4 {[%clk 0:00:14]}  Rxe4 {[%clk 0:01:16]} 23. Qc2 {[%clk 0:00:08]}  Ne3 {[%clk 0:01:12]} 24. Nd2 {[%clk 0:00:06]}  Nxc2 {[%clk 0:00:41]} 25. Rxf5 {[%clk 0:00:06]}  Re2 {[%clk 0:00:42]} 26. Rf2 {[%clk 0:00:07]}  Rhe8 {[%clk 0:00:41]} 27. Bxf6 {[%clk 0:00:07]}  gxf6 {[%clk 0:00:41]} 28. Nf1 {[%clk 0:00:07]}  Nd4 {[%clk 0:00:38]} 29. Rd1 {[%clk 0:00:08]}  c5 {[%clk 0:00:38]} 30. g4 {[%clk 0:00:04]}  Rxf2 {[%clk 0:00:35]} 31. Kxf2 {[%clk 0:00:05]}  Re2+ {[%clk 0:00:35]} 32. Kg3 {[%clk 0:00:05]}  Rxb2 {[%clk 0:00:35]} 33. Rd2 {[%clk 0:00:02]}  Rb1 {[%clk 0:00:35]} 34. Ne3 {[%clk 0:00:02]}  Kc7 {[%clk 0:00:26]} 35. Kxh3 {[%clk 0:00:03]}  Kc6 {[%clk 0:00:26]} 36. Nd5 {[%clk 0:00:03]}  b5 {[%clk 0:00:25]} 37. Ne7+ {[%clk 0:00:02]}  Kd6 {[%clk 0:00:20]} 38. Nf5+ {[%clk 0:00:02]}  Ke5 {[%clk 0:00:20]} 39. cxb5 {[%clk 0:00:02]}  Nxf5 {[%clk 0:00:17]} 40. Re2+ {[%clk 0:00:02]}  Kd4 {[%clk 0:00:16]} 41. gxf5 {[%clk 0:00:03]}  c4 {[%clk 0:00:16]} 42. Kg4 {[%clk 0:00:03]}  c3 {[%clk 0:00:17]} 43. h4 {[%clk 0:00:02]}  Kd3 {[%clk 0:00:17]} 44. Re6 {[%clk 0:00:01]}  c2 {[%clk 0:00:17]} 45. Rd6+ {[%clk 0:00:02]}  Ke4 {[%clk 0:00:17]} 46. Re6+ {[%clk 0:00:01]}  Kd5 {[%clk 0:00:17]} 47. Rc6 {[%clk 0:00:02]}  c1=Q {[%clk 0:00:18]} 48. Rxc1 {[%clk 0:00:03]}  Rxc1 {[%clk 0:00:19]} 49. Kh5 {[%clk 0:00:03]}  Ke5 {[%clk 0:00:18]} 50. Kg6 {[%clk 0:00:00]}  Rg1+ {[%clk 0:00:19]} 0-1

[Event "January 2 Late 2024"]
[Site "https://www.chess.com"]
[Date "2024.01.02"]
[Round "5"]
[White "Melkumyan, Hrant"]
[Black "Bortnyk, Olexandr"]
[Result "1-0"]
[Board "8"]
[TimeControl "180+1"]
[WhiteFideId "13302485"]
[BlackFideId "14120828"]
[WhiteElo "2875"]
[BlackElo "3020"]
[WhiteTeam "ARM"]
[BlackTeam "UKR"]
[WhiteClock "0:00:52"]
[BlackClock "0:00:25"]

1. Nf3 {[%clk 0:02:52]}  Nf6 {[%clk 0:03:00]} 2. d4 {[%clk 0:02:50]}  b6 {[%clk 0:03:00]} 3. c4 {[%clk 0:02:48]}  Bb7 {[%clk 0:03:00]} 4. Nc3 {[%clk 0:02:48]}  g6 {[%clk 0:03:01]} 5. d5 {[%clk 0:02:39]}  Bg7 {[%clk 0:03:00]} 6. e4 {[%clk 0:02:39]}  O-O {[%clk 0:03:00]} 7. Bd3 {[%clk 0:02:39]}  a5 {[%clk 0:02:57]} 8. O-O {[%clk 0:02:38]}  Na6 {[%clk 0:02:57]} 9. e5 {[%clk 0:02:31]}  Ng4 {[%clk 0:02:52]} 10. Re1 {[%clk 0:02:30]}  d6 {[%clk 0:02:52]} 11. Bf4 {[%clk 0:02:28]}  Nc5 {[%clk 0:02:47]} 12. Bc2 {[%clk 0:02:16]}  dxe5 {[%clk 0:02:40]} 13. Nxe5 {[%clk 0:02:16]}  Nxe5 {[%clk 0:02:41]} 14. Bxe5 {[%clk 0:02:17]}  Bxe5 {[%clk 0:02:40]} 15. Rxe5 {[%clk 0:02:18]}  e6 {[%clk 0:02:39]} 16. Qd2 {[%clk 0:02:10]}  exd5 {[%clk 0:02:29]} 17. cxd5 {[%clk 0:02:09]}  Qh4 {[%clk 0:02:12]} 18. Rae1 {[%clk 0:02:07]}  Rad8 {[%clk 0:02:11]} 19. Qe3 {[%clk 0:01:58]}  Rd7 {[%clk 0:01:52]} 20. a3 {[%clk 0:01:58]}  Kg7 {[%clk 0:01:43]} 21. g3 {[%clk 0:01:51]}  Qc4 {[%clk 0:01:29]} 22. Rd1 {[%clk 0:01:51]}  Ba6 {[%clk 0:01:24]} 23. h4 {[%clk 0:01:45]}  f6 {[%clk 0:01:20]} 24. Re7+ {[%clk 0:01:40]}  Rxe7 {[%clk 0:01:20]} 25. Qxe7+ {[%clk 0:01:41]}  Rf7 {[%clk 0:01:21]} 26. Qe3 {[%clk 0:01:41]}  Qg4 {[%clk 0:01:16]} 27. Rd4 {[%clk 0:01:32]}  Qh3 {[%clk 0:01:14]} 28. Rd1 {[%clk 0:01:29]}  Nd7 {[%clk 0:01:07]} 29. Be4 {[%clk 0:01:20]}  Re7 {[%clk 0:01:06]} 30. Bg2 {[%clk 0:01:12]}  Rxe3 {[%clk 0:00:59]} 31. Bxh3 {[%clk 0:01:12]}  Re7 {[%clk 0:01:00]} 32. d6 {[%clk 0:01:13]}  cxd6 {[%clk 0:00:59]} 33. Nd5 {[%clk 0:01:13]}  Rf7 {[%clk 0:00:40]} 34. Be6 {[%clk 0:01:13]}  Bc4 {[%clk 0:00:39]} 35. Bxf7 {[%clk 0:01:11]}  Kxf7 {[%clk 0:00:40]} 36. Ne3 {[%clk 0:01:09]}  Ne5 {[%clk 0:00:31]} 37. f4 {[%clk 0:01:02]}  Bb3 {[%clk 0:00:27]} 38. Rxd6 {[%clk 0:00:52]}  Nc4 {[%clk 0:00:26]} 39. Nxc4 {[%clk 0:00:51]}  Bxc4 {[%clk 0:00:25]} 40. Rxb6 {[%clk 0:00:52]} 1-0

[Event "January 2 Late 2024"]
[Site "https://www.chess.com"]
[Date "2024.01.02"]
[Round "5"]
[White "Sarana, Alexey"]
[Black "Lewicki, Miroslaw"]
[Result "1-0"]
[Board "9"]
[TimeControl "180+1"]
[WhiteFideId "24133795"]
[BlackFideId "1113380"]
[WhiteElo "3017"]
[BlackElo "2561"]
[WhiteTeam "SRB"]
[BlackTeam "POL"]
[WhiteClock "0:01:28"]
[BlackClock "0:00:00"]

1. d4 {[%clk 0:03:00]}  Nf6 {[%clk 0:02:59]} 2. c4 {[%clk 0:03:01]}  e6 {[%clk 0:02:58]} 3. Nc3 {[%clk 0:03:01]}  d5 {[%clk 0:02:58]} 4. Bg5 {[%clk 0:02:59]}  Be7 {[%clk 0:02:44]} 5. e3 {[%clk 0:02:58]}  Nbd7 {[%clk 0:02:28]} 6. Qc2 {[%clk 0:02:50]}  c6 {[%clk 0:02:26]} 7. Nf3 {[%clk 0:02:50]}  h6 {[%clk 0:02:25]} 8. Bh4 {[%clk 0:02:47]}  O-O {[%clk 0:02:25]} 9. Be2 {[%clk 0:02:45]}  b6 {[%clk 0:02:25]} 10. O-O {[%clk 0:02:45]}  Bb7 {[%clk 0:02:24]} 11. Rfd1 {[%clk 0:02:43]}  Rc8 {[%clk 0:02:17]} 12. Rac1 {[%clk 0:02:42]}  dxc4 {[%clk 0:01:59]} 13. Bxc4 {[%clk 0:02:42]}  c5 {[%clk 0:01:59]} 14. dxc5 {[%clk 0:02:35]}  Rxc5 {[%clk 0:01:58]} 15. Bb5 {[%clk 0:02:33]}  Rc7 {[%clk 0:01:45]} 16. Ne5 {[%clk 0:02:14]}  a6 {[%clk 0:01:06]} 17. Bxd7 {[%clk 0:01:57]}  Nxd7 {[%clk 0:01:05]} 18. Bxe7 {[%clk 0:01:46]}  Qxe7 {[%clk 0:01:05]} 19. Nd5 {[%clk 0:01:46]}  Nxe5 {[%clk 0:00:54]} 20. Nxe7+ {[%clk 0:01:45]}  Rxe7 {[%clk 0:00:55]} 21. Qc3 {[%clk 0:01:43]}  Ng6 {[%clk 0:00:51]} 22. Qb4 {[%clk 0:01:43]}  Bd5 {[%clk 0:00:27]} 23. f3 {[%clk 0:01:39]}  b5 {[%clk 0:00:12]} 24. e4 {[%clk 0:01:39]}  Bb7 {[%clk 0:00:12]} 25. Rd2 {[%clk 0:01:34]}  Rfe8 {[%clk 0:00:07]} 26. Rcd1 {[%clk 0:01:34]}  Ne5 {[%clk 0:00:07]} 27. Rd8 {[%clk 0:01:32]}  Kh7 {[%clk 0:00:06]} 28. Rxe8 {[%clk 0:01:32]}  Rxe8 {[%clk 0:00:07]} 29. Qc5 {[%clk 0:01:31]}  Nc4 {[%clk 0:00:05]} 30. b3 {[%clk 0:01:31]}  Rc8 {[%clk 0:00:05]} 31. Qxc8 {[%clk 0:01:27]}  Bxc8 {[%clk 0:00:05]} 32. bxc4 {[%clk 0:01:27]}  bxc4 {[%clk 0:00:06]} 33. Rc1 {[%clk 0:01:28]}  Bd7 {[%clk 0:00:06]} 34. Rxc4 {[%clk 0:01:28]}  Bb5 {[%clk 0:00:07]} 35. Rc5 {[%clk 0:01:29]}  Kg6 {[%clk 0:00:07]} 36. Kf2 {[%clk 0:01:29]}  Kf6 {[%clk 0:00:06]} 37. h4 {[%clk 0:01:29]}  g5 {[%clk 0:00:05]} 38. h5 {[%clk 0:01:28]}  Ke7 {[%clk 0:00:03]} 39. Ke3 {[%clk 0:01:29]}  Kd6 {[%clk 0:00:03]} 40. Rxg5 {[%clk 0:01:27]}  hxg5 {[%clk 0:00:02]} 41. h6 {[%clk 0:01:28]}  f5 {[%clk 0:00:01]} 42. h7 {[%clk 0:01:28]}  f4+ {[%clk 0:00:00]} 43. Kf2 {[%clk 0:01:28]} 1-0

[Event "January 2 Late 2024"]
[Site "https://www.chess.com"]
[Date "2024.01.02"]
[Round "5"]
[White "Zarubitski, Viachaslau"]
[Black "Kramnik, Vladimir"]
[Result "1-0"]
[Board "15"]
[TimeControl "180+1"]
[WhiteFideId "13509373"]
[BlackFideId "4101588"]
[WhiteElo "2722"]
[BlackElo "2983"]
[WhiteTeam "BLR"]
[BlackTeam "RUS"]
[WhiteClock "0:00:03"]
[BlackClock "0:00:00"]

1. c4 {[%clk 0:03:00]}  e6 {[%clk 0:02:02]} 2. Nf3 {[%clk 0:02:56]}  Nf6 {[%clk 0:02:01]} 3. b3 {[%clk 0:02:55]}  d5 {[%clk 0:02:01]} 4. Bb2 {[%clk 0:02:55]}  Be7 {[%clk 0:02:02]} 5. e3 {[%clk 0:02:55]}  O-O {[%clk 0:02:02]} 6. Be2 {[%clk 0:02:54]}  b6 {[%clk 0:02:01]} 7. cxd5 {[%clk 0:02:45]}  exd5 {[%clk 0:02:00]} 8. O-O {[%clk 0:02:44]}  c5 {[%clk 0:02:00]} 9. d4 {[%clk 0:02:44]}  Ba6 {[%clk 0:01:59]} 10. dxc5 {[%clk 0:02:39]}  bxc5 {[%clk 0:01:57]} 11. Nc3 {[%clk 0:02:28]}  Bb7 {[%clk 0:01:57]} 12. Rc1 {[%clk 0:02:17]}  Nbd7 {[%clk 0:01:56]} 13. Qd2 {[%clk 0:02:02]}  Re8 {[%clk 0:01:56]} 14. Rfd1 {[%clk 0:02:02]}  Bf8 {[%clk 0:01:56]} 15. h3 {[%clk 0:01:50]}  a6 {[%clk 0:01:54]} 16. Na4 {[%clk 0:01:44]}  Rc8 {[%clk 0:01:52]} 17. Ba3 {[%clk 0:01:39]}  Ne4 {[%clk 0:01:47]} 18. Qe1 {[%clk 0:01:39]}  Qf6 {[%clk 0:01:37]} 19. Bb2 {[%clk 0:01:31]}  Qh6 {[%clk 0:01:29]} 20. Nc3 {[%clk 0:01:29]}  Nxc3 {[%clk 0:01:25]} 21. Qxc3 {[%clk 0:01:22]}  d4 {[%clk 0:01:19]} 22. Qd2 {[%clk 0:01:09]}  Bd6 {[%clk 0:00:52]} 23. Re1 {[%clk 0:00:35]}  dxe3 {[%clk 0:00:49]} 24. fxe3 {[%clk 0:00:35]}  Nf8 {[%clk 0:00:45]} 25. Rcd1 {[%clk 0:00:31]}  Bg3 {[%clk 0:00:44]} 26. Rf1 {[%clk 0:00:30]}  Qxe3+ {[%clk 0:00:43]} 27. Qxe3 {[%clk 0:00:30]}  Rxe3 {[%clk 0:00:44]} 28. Bc4 {[%clk 0:00:29]}  Bxf3 {[%clk 0:00:35]} 29. Rxf3 {[%clk 0:00:26]}  Rxf3 {[%clk 0:00:35]} 30. gxf3 {[%clk 0:00:27]}  a5 {[%clk 0:00:28]} 31. Bc3 {[%clk 0:00:26]}  Bc7 {[%clk 0:00:27]} 32. Rd5 {[%clk 0:00:23]}  Bb6 {[%clk 0:00:20]} 33. Rd6 {[%clk 0:00:21]}  Rb8 {[%clk 0:00:20]} 34. Kf1 {[%clk 0:00:16]}  h6 {[%clk 0:00:20]} 35. a4 {[%clk 0:00:13]}  Bc7 {[%clk 0:00:15]} 36. Rc6 {[%clk 0:00:12]}  Bb6 {[%clk 0:00:13]} 37. Be5 {[%clk 0:00:10]}  Re8 {[%clk 0:00:13]} 38. Bxg7 {[%clk 0:00:10]}  Kxg7 {[%clk 0:00:12]} 39. Rxb6 {[%clk 0:00:10]}  Ng6 {[%clk 0:00:12]} 40. Rb7 {[%clk 0:00:09]}  Re7 {[%clk 0:00:12]} 41. Rb5 {[%clk 0:00:09]}  Ne5 {[%clk 0:00:10]} 42. Rxc5 {[%clk 0:00:08]}  Nxf3 {[%clk 0:00:06]} 43. Rxa5 {[%clk 0:00:08]}  Nd2+ {[%clk 0:00:06]} 44. Kf2 {[%clk 0:00:08]}  Nxc4 {[%clk 0:00:05]} 45. bxc4 {[%clk 0:00:09]}  Rc7 {[%clk 0:00:03]} 46. c5 {[%clk 0:00:09]}  Kf6 {[%clk 0:00:04]} 47. Ke3 {[%clk 0:00:08]}  Ke5 {[%clk 0:00:04]} 48. c6+ {[%clk 0:00:03]}  Kd6 {[%clk 0:00:04]} 49. Rh5 {[%clk 0:00:04]}  Kxc6 {[%clk 0:00:03]} 50. Rxh6+ {[%clk 0:00:04]}  Kc5 {[%clk 0:00:03]} 51. Rf6 {[%clk 0:00:02]}  Ra7 {[%clk 0:00:02]} 52. Rf4 {[%clk 0:00:03]}  Kd5 {[%clk 0:00:02]} 53. h4 {[%clk 0:00:03]}  Ke5 {[%clk 0:00:02]} 54. Kf3 {[%clk 0:00:03]}  f5 {[%clk 0:00:02]} 55. Rb4 {[%clk 0:00:03]}  Kf6 {[%clk 0:00:01]} 56. Rb6+ {[%clk 0:00:03]}  Ke5 {[%clk 0:00:02]} 57. Rb5+ {[%clk 0:00:03]}  Kf6 {[%clk 0:00:02]} 58. a5 {[%clk 0:00:04]}  Kg6 {[%clk 0:00:02]} 59. Kg3 {[%clk 0:00:04]}  Ra8 {[%clk 0:00:02]} 60. Rc5 {[%clk 0:00:02]}  Kh5 {[%clk 0:00:02]} 61. Rxf5+ {[%clk 0:00:02]}  Kh6 {[%clk 0:00:03]} 62. Rb5 {[%clk 0:00:03]}  Kg6 {[%clk 0:00:03]} 63. Kg4 {[%clk 0:00:03]}  Kh6 {[%clk 0:00:04]} 64. h5 {[%clk 0:00:03]}  Ra7 {[%clk 0:00:03]} 65. Rb6+ {[%clk 0:00:03]}  Kh7 {[%clk 0:00:04]} 66. a6 {[%clk 0:00:04]}  Kh8 {[%clk 0:00:04]} 67. Kg5 {[%clk 0:00:04]}  Rg7+ {[%clk 0:00:03]} 68. Rg6 {[%clk 0:00:04]}  Ra7 {[%clk 0:00:03]} 69. Kf5 {[%clk 0:00:04]}  Rc7 {[%clk 0:00:03]} 70. Ke5 {[%clk 0:00:05]}  Rc5+ {[%clk 0:00:03]} 71. Kd6 {[%clk 0:00:04]}  Ra5 {[%clk 0:00:03]} 72. Kc7 {[%clk 0:00:04]}  Kh7 {[%clk 0:00:03]} 73. Kb7 {[%clk 0:00:03]}  Rxh5 {[%clk 0:00:02]} 74. Rb6 {[%clk 0:00:02]}  Ra5 {[%clk 0:00:02]} 75. a7 {[%clk 0:00:03]}  Kg7 {[%clk 0:00:03]} 76. a8=Q {[%clk 0:00:03]}  Rb5 {[%clk 0:00:00]} 77. Rxb5 {[%clk 0:00:03]} 1-0